bitfinex/quotes_ETHUSD_20240709
["timestamp","ask_amount","ask_price","bid_price","bid_amount"]
[1720497305715,3.30135148,3075.4,3074.4,10.69131763]
[1720497306021,4.19513463,3075.4,3074.4,10.69131763]
[1720497306323,4.19513463,3075.4,3073.8,3.2533]
[1720497306324,3.2521,3075.0,3073.9,10.69186763]
[1720497306553,3.2521,3075.0,3074.0,3.25304]
[1720497306826,5.65812,3075.2,3074.1,3.25297]
[1720497307037,2.4063,3075.2,3074.1,3.25297]
[1720497307338,2.4063,3075.0,3074.1,3.25297]
[1720497307536,2.4063,3075.0,3074.4,3.25264]
[1720497308209,2.4063,3075.0,3074.7,3.25234]
[1720497308523,2.4063,3075.0,3074.3,0.06504786]
[1720497308524,2.2848,3075.8,3075.3,3.25168]
[1720497308735,2.2848,3075.8,3075.1,3.25192]
[1720497309019,5.53598,3075.8,3074.9,3.25208]
[1720497309261,0.553598,3075.7,3074.8,7.43870763]
[1720497309720,3.2514,3075.6,3074.8,7.43870763]
[1720497310026,2.4759,3075.4,3074.8,7.43870763]
[1720497310223,2.4759,3075.4,3074.2,3.25285]
[1720497310224,0.57771415,3075.3,3074.2,3.25285]
[1720497310435,3.25203,3075.0,3074.1,3.25297]
[1720497310590,3.25203,3075.0,3073.8,10.69196763]
[1720497310591,0.04972148,3074.9,3073.8,10.69196763]
[1720497310796,0.04972148,3074.9,3074.0,3.25306]
[1720497311123,5.72782,3075.1,3074.1,3.25297]
[1720497311501,5.72782,3075.1,3074.2,3.25287]
[1720497311689,6.969775,3075.1,3074.2,3.25287]
[1720497312435,3.25204,3075.0,3074.0,3.25302]
[1720497312723,3.25204,3075.0,3074.1,3.25298]
[1720497312932,3.25204,3075.0,3073.9,3.25317]
[1720497313133,0.6969895,3074.9,3074.0,3.25302]
[1720497313293,0.6969895,3074.9,3073.9,3.25317]
[1720497313493,0.6969895,3074.9,3074.0,3.25308]
[1720497314208,5.64293,3074.8,3073.6,3.25342]
[1720497314504,6.74176148,3075.0,3073.6,3.25351]
[1720497314505,2.3906,3074.6,3073.6,3.25351]
[1720497314912,2.3906,3074.6,3074.0,3.253]
[1720497315305,2.3906,3074.6,3073.6,3.25341]
[1720497315306,2.3906,3074.6,3074.1,3.25296]
[1720497316704,2.3906,3074.6,3074.2,3.31790631]
[1720497316916,2.3906,3074.6,3074.2,3.25285]
[1720497316917,0.57915196,3074.6,3074.2,3.25285]
[1720497317119,0.57915196,3074.6,3074.0,3.25305]
[1720497317326,0.57915196,3074.6,3073.8,10.69190763]
[1720497317502,0.57915196,3074.6,3073.7,3.25331]
[1720497317503,0.04972148,3074.5,3073.7,3.25331]
[1720497317917,0.43784482,3074.5,3073.5,3.25361]
[1720497318142,3.25267,3074.4,3073.4,3.25371]
[1720497318349,3.25267,3074.4,3072.8,15.48]
[1720497318350,3.25287,3074.2,3073.0,3.25412]
[1720497318555,0.04972148,3074.1,3073.1,3.0]
[1720497318707,0.04972148,3074.1,3073.3,3.25382]
[1720497319520,0.71225148,3074.3,3073.6,3.2535]
[1720497319707,3.25277,3074.3,3073.4,3.25371]
[1720497319905,3.25277,3074.3,3073.5,3.2536]
[1720497319906,2.3527,3074.3,3073.5,3.2536]
[1720497320131,2.91821315,3074.3,3073.5,3.2536]
[1720497320301,2.91821315,3074.3,3073.2,3.25393]
[1720497320302,3.30261148,3074.2,3073.2,3.25393]
[1720497320502,3.25309,3074.0,3072.8,7.43870763]
[1720497320729,3.25309,3074.0,3072.9,3.0]
[1720497320730,4.25186015,3074.0,3072.9,3.0]
[1720497321220,4.25186015,3074.0,3073.0,3.25404]
[1720497321418,2.4229,3073.9,3073.0,3.25404]
[1720497321617,3.25331,3073.8,3072.8,7.43870763]
[1720497321831,0.96551463,3073.7,3072.8,10.69298763]
[1720497322650,4.21892463,3073.7,3072.8,10.69298763]
[1720497322952,3.25382,3073.4,3072.4,3.25474]
[1720497323108,3.30354148,3073.4,3072.4,3.25474]
[1720497323309,2.2648,3073.6,3072.8,3.25435]
[1720497323812,6.070131,3073.6,3072.8,3.25435]
[1720497324052,5.51831,3073.6,3072.8,3.25435]
[1720497324415,5.51831,3073.6,3072.6,3.25455]
[1720497324616,5.51831,3073.6,3072.7,3.25439]
[1720497325315,5.51831,3073.6,3072.6,3.25455]
[1720497325511,0.895031,3073.5,3072.8,3.25435]
[1720497325737,2.2648,3073.6,3073.0,3.25412]
[1720497325910,2.2648,3073.6,3073.3,3.25374]
[1720497326743,2.2648,3073.6,3073.4,3.25372]
[1720497328115,2.2648,3073.6,3073.2,3.25391]
[1720497328547,1.05660258,3073.6,3073.2,3.25391]
[1720497329839,1.05660258,3073.6,3073.3,3.25381]
[1720497330872,3.25204,3075.0,3073.3,0.0650757]
[1720497331016,3.59155034,3076.0,3074.3,3.25267]
[1720497331330,3.25139,3075.7,3074.6,3.25244]
[1720497331513,5.64409,3075.6,3074.6,3.25244]
[1720497331712,3.815909,3075.5,3074.6,3.25244]
[1720497332934,3.25162,3075.4,3074.5,3.25255]
[1720497334091,0.564409,3075.5,3074.5,3.25255]
[1720497334374,2.3927,3075.6,3075.0,3.25202]
[1720497334729,2.3927,3075.6,3075.2,3.25178]
[1720497335233,0.35915803,3075.9,3075.3,3.25168]
[1720497335547,2.3729,3076.1,3075.3,3.25168]
[1720497336946,2.3729,3076.1,3075.5,3.25148]
[1720497337186,2.329,3076.8,3075.7,3.2512]
[1720497337473,2.329,3076.8,3075.9,3.25107]
[1720497337474,0.9689,3076.7,3075.9,3.25107]
[1720497337848,2.329,3076.8,3075.9,3.25107]
[1720497337849,5.57913,3076.8,3075.9,3.25107]
[1720497338147,3.25026,3076.7,3075.8,3.25114]
[1720497338345,3.25026,3076.7,3075.3,7.43870763]
[1720497338346,3.25075,3076.3,3075.3,7.43870763]
[1720497338585,0.668275,3076.2,3075.3,7.43870763]
[1720497338777,0.668275,3076.2,3075.4,3.2516]
[1720497340279,2.4682,3076.5,3075.6,3.25133]
[1720497340494,2.4682,3076.5,3075.8,3.25118]
[1720497340859,2.4682,3076.5,3075.6,3.25133]
[1720497341171,2.4682,3076.5,3075.4,3.2516]
[1720497341340,3.25085,3076.2,3075.3,7.43870763]
[1720497341745,3.25088,3076.1,3075.3,7.43870763]
[1720497341993,3.25088,3076.1,3075.0,3.25203]
[1720497342141,0.04972148,3076.0,3075.0,3.25203]
[1720497342340,3.25098,3076.0,3075.0,3.25203]
[1720497342581,0.668298,3075.9,3075.0,3.25203]
[1720497342787,0.668298,3075.9,3074.9,0.0650367]
[1720497343096,3.25067,3076.3,3075.3,3.25162]
[1720497343499,2.4566,3076.0,3075.0,3.25203]
[1720497343983,2.4566,3076.0,3074.7,10.69099763]
[1720497343984,3.25109,3075.9,3074.7,10.69099763]
[1720497344148,6.68309,3075.9,3074.7,7.43870763]
[1720497344353,0.91894115,3075.8,3074.7,7.43870763]
[1720497344566,5.70765,3076.0,3075.0,3.25194]
[1720497344965,2.4566,3076.0,3075.2,3.25171]
[1720497346192,2.4566,3076.0,3075.3,3.25169]
[1720497346557,2.4566,3076.0,3075.4,3.2516]
[1720497346774,2.4566,3076.0,3075.5,3.25147]
[1720497347502,2.4566,3076.0,3075.3,3.25165]
[1720497347793,2.70226,3076.0,3075.2,3.2518]
[1720497347962,2.70226,3076.0,3074.9,3.25204]
[1720497348164,2.70226,3076.0,3075.0,3.80202]
[1720497348361,2.70226,3076.0,3075.2,3.25173]
[1720497348362,2.4566,3076.0,3075.2,3.25173]
[1720497348566,2.4566,3076.0,3075.3,3.25164]
[1720497350700,2.4566,3076.0,3075.1,3.25185]
[1720497351273,5.70758,3076.0,3075.1,3.25185]
[1720497351479,5.70758,3076.0,3075.2,3.25179]
[1720497352367,5.70758,3076.0,3075.1,3.25185]
[1720497353097,3.25108,3075.9,3075.1,3.25185]
[1720497353411,3.821838,3075.9,3075.1,3.25185]
[1720497353902,3.821838,3075.9,3074.9,3.25211]
[1720497354211,3.25128,3075.8,3074.8,3.25223]
[1720497354395,3.25131,3075.7,3074.7,7.43870763]
[1720497354608,3.25131,3075.7,3074.8,3.25224]
[1720497355929,3.30113148,3075.6,3074.7,7.43870763]
[1720497356214,3.67183518,3075.6,3074.8,3.25223]
[1720497357179,0.42042518,3075.6,3074.8,3.25223]
[1720497358610,0.9529418,3075.8,3074.8,0.06504221]
[1720497358822,0.570758,3075.9,3075.3,3.25164]
[1720497359002,2.4566,3076.0,3075.3,3.25164]
[1720497359523,2.4566,3076.0,3075.1,3.25183]
[1720497360189,2.4566,3076.0,3075.2,3.25181]
[1720497360530,2.4566,3076.0,3075.2,3.25173]
[1720497360690,2.4566,3076.0,3075.3,3.2517]
[1720497360888,0.570747,3075.9,3075.3,3.2517]
[1720497361090,0.570747,3075.9,3075.4,3.2516]
[1720497361271,2.4566,3076.0,3075.3,3.2517]
[1720497361478,2.4566,3076.0,3075.5,3.25149]
[1720497362444,2.4566,3076.0,3075.3,3.2517]
[1720497362617,5.70757,3076.0,3074.9,0.55]
[1720497362803,0.24566,3075.9,3075.1,3.25192]
[1720497363147,0.04972148,3075.8,3074.7,6.50458]
[1720497363329,3.25129,3075.7,3074.8,6.25222]
[1720497363635,0.60029515,3075.8,3075.0,3.25201]
[1720497363923,0.73481952,3075.7,3075.0,3.25201]
[1720497364686,0.04972148,3075.6,3074.8,6.25216]
[1720497364884,3.98611952,3075.7,3074.8,6.25216]
[1720497365197,0.45864147,3075.6,3074.9,3.25206]
[1720497365733,0.73481952,3075.7,3074.9,3.25206]
[1720497367410,3.98610952,3075.7,3074.8,3.0]
[1720497367636,3.25139,3075.6,3074.8,3.0]
[1720497367922,3.25139,3075.6,3074.8,3.25224]
[1720497368137,3.25139,3075.6,3074.7,3.25226]
[1720497368138,0.7287221,3075.5,3074.9,3.2521]
[1720497368333,0.60029515,3075.8,3074.9,3.2521]
[1720497368487,3.85154515,3075.8,3074.9,3.2521]
[1720497369041,0.60029515,3075.8,3075.1,3.25187]
[1720497369243,0.38513952,3075.7,3075.1,3.25187]
[1720497369544,3.686151,3075.7,3074.6,10.69105763]
[1720497369822,5.61826,3075.6,3074.6,3.25235]
[1720497370001,6.04690461,3075.6,3074.6,3.25235]
[1720497370328,3.25151,3075.5,3074.6,3.25235]
[1720497370523,3.25161,3075.4,3074.4,3.25265]
[1720497370723,3.25161,3075.4,3074.5,3.0]
[1720497371029,0.325161,3075.3,3074.6,3.25236]
[1720497371228,9.29839461,3075.6,3074.6,3.25236]
[1720497371431,6.04690461,3075.6,3074.8,3.25216]
[1720497371633,0.60469046,3075.5,3074.9,3.25211]
[1720497372292,2.79544461,3075.6,3075.0,3.25199]
[1720497372638,2.79544461,3075.6,3074.8,3.25219]
[1720497372817,2.79544461,3075.6,3074.9,3.25208]
[1720497373319,2.79544461,3075.6,3074.8,3.25223]
[1720497373522,0.60467446,3075.5,3074.8,3.25223]
[1720497373837,0.60467446,3075.5,3074.9,3.25212]
[1720497374407,0.60467446,3075.5,3074.6,3.25244]
[1720497374606,0.60467446,3075.5,3074.7,3.25234]
[1720497374922,0.62228745,3075.4,3074.8,3.25224]
[1720497376537,0.62228745,3075.4,3074.8,5.25224]
[1720497376837,0.62228745,3075.4,3074.8,2.0]
[1720497377405,3.25178,3075.3,3074.8,2.0]
[1720497377610,0.71257475,3075.2,3074.8,2.0]
[1720497378817,0.62228745,3075.4,3074.8,2.0]
[1720497379647,2.3668,3075.6,3074.9,3.25212]
[1720497379648,5.61821,3075.6,3074.9,3.25212]
[1720497380324,2.3668,3075.6,3074.9,3.31716018]
[1720497380525,2.3668,3075.6,3075.1,3.25188]
[1720497381244,2.60348,3075.6,3075.1,3.25188]
[1720497381464,2.60348,3075.6,3074.8,1.0]
[1720497381667,5.8549,3075.6,3074.8,1.0]
[1720497381960,0.04972148,3075.5,3074.8,1.0]
[1720497382121,0.59046215,3075.4,3074.8,1.0]
[1720497382925,0.59046215,3075.4,3074.8,4.2522]
[1720497385148,0.59046215,3075.4,3074.8,7.50434]
[1720497385348,2.60348,3075.6,3074.8,4.25214]
[1720497385349,5.85489,3075.6,3074.8,4.25214]
[1720497387730,3.25154,3075.5,3074.8,1.0]
[1720497388050,5.85489,3075.6,3074.8,1.0]
[1720497388296,3.25161,3075.4,3074.8,1.0]
[1720497388855,0.585489,3075.5,3074.8,1.0]
[1720497389544,0.585489,3075.5,3074.8,4.2522]
[1720497390946,3.836989,3075.5,3074.8,1.0]
[1720497391136,3.2518,3075.3,3074.8,1.0]
[1720497391365,0.650341,3075.2,3074.8,1.0]
[1720497392393,0.585489,3075.5,3074.8,4.25216]
[1720497395182,0.585489,3075.5,3074.8,1.0]
[1720497395382,0.585489,3075.5,3074.8,4.25222]
[1720497396076,0.585489,3075.5,3074.8,1.0]
[1720497396257,4.69192901,3075.5,3074.8,1.0]
[1720497396458,1.0546839,3075.4,3074.8,1.0]
[1720497397339,1.0546839,3075.4,3074.9,3.25211]
[1720497397539,0.585489,3075.5,3074.9,3.25211]
[1720497398749,1.44029963,3075.5,3074.9,3.25211]
[1720497398953,0.585489,3075.5,3074.9,3.25211]
[1720497399469,0.585489,3075.5,3074.8,1.0]
[1720497399470,0.04972148,3075.4,3074.8,1.0]
[1720497399676,3.64040305,3075.3,3074.8,1.0]
[1720497402196,3.25182,3075.2,3074.8,1.0]
[1720497407521,0.38867305,3075.3,3074.1,0.68292065]
[1720497407824,8.73498455,3074.7,3073.7,1.36584131]
[1720497408026,8.73498455,3074.7,3073.7,3.2534]
[1720497408027,2.85571424,3074.6,3073.7,3.2534]
[1720497408348,1.724326,3074.5,3073.9,3.25312]
[1720497408627,1.724326,3074.4,3073.9,3.25312]
[1720497408780,0.59731464,3074.3,3073.9,3.25312]
[1720497408984,3.25237,3074.7,3073.9,3.25312]
[1720497408985,0.59731464,3074.2,3073.9,3.25312]
[1720497409217,3.25237,3074.7,3073.9,3.25312]
[1720497409429,1.72420487,3074.6,3073.9,3.25312]
[1720497409581,3.25237,3074.7,3073.9,3.25312]
[1720497409582,2.22186236,3074.5,3073.9,3.25312]
[1720497409789,1.72420487,3074.4,3073.9,3.25312]
[1720497410099,0.59726326,3074.3,3073.9,3.25312]
[1720497410421,0.49765749,3074.5,3073.9,3.25312]
[1720497410725,0.59725767,3074.4,3073.9,3.25312]
[1720497410932,0.59725736,3074.3,3073.9,3.25312]
[1720497411093,0.49765749,3074.5,3073.9,3.25312]
[1720497411431,0.59725858,3074.4,3073.9,3.25312]
[1720497411833,0.81944647,3074.4,3073.9,3.25312]
[1720497412123,0.59725858,3074.3,3073.7,3.2534]
[1720497412425,0.49765749,3074.5,3073.9,3.25318]
[1720497412582,0.38867305,3075.3,3074.4,3.25265]
[1720497412787,4.62236274,3075.2,3074.4,3.25265]
[1720497413090,4.62236274,3075.2,3074.0,9.79055989]
[1720497413091,1.72393949,3075.1,3074.1,3.25297]
[1720497413293,3.25214,3074.9,3074.1,3.25297]
[1720497413496,3.25214,3074.9,3074.0,7.43870763]
[1720497413497,5.47388744,3074.8,3074.0,7.43870763]
[1720497413727,4.97628949,3074.7,3074.0,7.43870763]
[1720497413933,0.59713432,3074.6,3074.0,7.43870763]
[1720497414131,3.25235,3074.7,3073.9,3.25309]
[1720497414442,0.59718297,3074.6,3073.9,3.25309]
[1720497416240,1.03189706,3074.6,3074.0,3.25306]
[1720497416443,2.80890795,3074.8,3074.1,3.25298]
[1720497416735,0.59716816,3074.7,3073.9,0.06505535]
[1720497416951,0.24373757,3075.2,3074.5,3.25255]
[1720497417241,1.72384035,3075.1,3074.5,3.25255]
[1720497417534,1.92053021,3075.0,3074.5,3.25255]
[1720497417742,1.72380328,3074.9,3074.3,3.25277]
[1720497417898,3.49555757,3075.2,3074.3,3.25277]
[1720497418099,3.25203,3075.0,3074.1,3.25297]
[1720497418459,5.47354403,3074.9,3073.9,3.25316]
[1720497418648,2.4389,3074.7,3073.9,3.25316]
[1720497418941,2.4389,3074.7,3074.0,3.25307]
[1720497419529,2.4389,3074.7,3074.1,3.25296]
[1720497419739,2.7325484,3074.7,3074.1,3.25296]
[1720497420617,0.497584,3074.9,3074.3,3.25267]
[1720497420845,0.59710818,3074.8,3074.1,3.25296]
[1720497421055,3.25203,3075.0,3074.1,3.25296]
[1720497421322,1.72390962,3074.9,3074.1,3.25296]
[1720497421559,1.7736311,3074.8,3073.9,3.25312]
[1720497421869,5.02606607,3074.7,3073.8,3.25326]
[1720497422016,1.72398459,3074.6,3073.8,3.25326]
[1720497422214,3.30208148,3074.7,3073.8,3.25326]
[1720497422215,2.27639032,3074.5,3073.8,3.25326]
[1720497422419,3.01075083,3074.4,3073.9,3.25319]
[1720497422665,0.50260661,3074.5,3073.9,3.25319]
[1720497422849,0.59725111,3074.4,3073.9,3.25319]
[1720497423054,0.04972148,3074.4,3073.7,3.25333]
[1720497423245,0.04972148,3074.4,3073.2,5.73508]
[1720497423246,0.04972148,3074.4,3073.3,4.95245336]
[1720497423572,1.72434026,3074.3,3073.1,7.43870763]
[1720497423858,1.95146791,3074.2,3073.4,3.25362]
[1720497424069,0.59732081,3074.1,3073.4,3.25362]
[1720497424361,0.59732081,3074.1,3073.1,7.43870763]
[1720497424362,2.85732081,3074.1,3073.2,3.25389]
[1720497424573,0.50260661,3074.5,3073.8,3.25319]
[1720497424735,2.26,3074.6,3074.1,3.25296]
[1720497425274,2.26,3074.6,3073.5,12.99627763]
[1720497425275,2.26,3074.6,3073.9,3.25311]
[1720497425567,1.72418848,3074.5,3073.9,3.25313]
[1720497425866,0.39841885,3074.4,3074.0,3.25308]
[1720497426168,2.26,3074.6,3074.0,3.25308]
[1720497426459,2.26,3074.6,3074.1,3.25295]
[1720497427216,2.26,3074.6,3073.9,3.25313]
[1720497427465,0.226,3074.5,3074.1,3.25297]
[1720497429337,0.226,3074.5,3073.9,3.25311]
[1720497429921,1.12695518,3074.4,3073.7,3.25336]
[1720497430157,1.12695518,3074.4,3073.5,10.69227763]
[1720497430158,1.58756085,3074.3,3073.5,10.69227763]
[1720497430349,0.04972148,3074.2,3073.5,10.69227763]
[1720497430660,6.68473,3074.4,3073.5,10.69227763]
[1720497430964,1.72437706,3074.3,3073.5,10.69227763]
[1720497431121,6.68473,3074.4,3073.5,10.69227763]
[1720497431326,1.72436582,3074.3,3073.5,10.69227763]
[1720497431568,1.96794711,3074.2,3073.5,10.69227763]
[1720497431764,6.68473,3074.4,3073.5,10.69227763]
[1720497431765,0.226,3074.5,3073.7,3.2534]
[1720497431927,1.72427462,3074.4,3073.9,3.25311]
[1720497432124,1.12697747,3074.3,3073.9,3.25311]
[1720497432350,0.226,3074.5,3073.9,3.25311]
[1720497432550,0.2486,3074.4,3073.9,3.25311]
[1720497432870,0.2486,3074.4,3073.5,7.43870763]
[1720497432871,2.3616,3074.3,3073.6,3.2535]
[1720497433165,2.3616,3074.3,3073.5,10.69224763]
[1720497433970,2.3616,3074.3,3073.7,3.2534]
[1720497434849,0.226,3074.5,3073.2,4.95265055]
[1720497434850,0.226,3074.5,3073.9,3.25309]
[1720497435061,2.3471,3074.7,3073.9,3.2531]
[1720497435368,2.28409178,3074.6,3074.0,3.25308]
[1720497435535,1.12691226,3074.5,3074.0,3.25308]
[1720497435922,0.559944,3074.6,3074.0,3.25308]
[1720497436134,0.59723122,3074.5,3074.0,3.25308]
[1720497436363,1.72416743,3074.5,3074.0,3.25308]
[1720497436536,1.35534735,3074.4,3074.0,3.25308]
[1720497436863,0.22841114,3074.4,3074.0,3.25308]
[1720497437165,1.12694336,3074.3,3074.0,3.25308]
[1720497437335,0.559944,3074.6,3074.0,3.25308]
[1720497437670,0.559944,3074.6,3074.1,3.25294]
[1720497437671,1.12693308,3074.5,3074.1,3.25294]
[1720497437870,2.3583,3074.4,3073.6,3.25344]
[1720497438079,1.96003753,3074.3,3073.7,3.25338]
[1720497438226,1.12689521,3074.2,3073.7,3.25338]
[1720497439362,1.12700232,3074.1,3073.7,3.25338]
[1720497439559,0.23583,3074.3,3073.7,3.25338]
[1720497439725,1.38640708,3074.2,3073.7,3.25338]
[1720497439925,0.259413,3074.2,3073.7,3.25338]
[1720497440125,1.12698875,3074.1,3073.7,3.25338]
[1720497440361,1.72461256,3074.0,3072.8,1.02173137]
[1720497440527,2.46793382,3073.9,3073.2,3.25392]
[1720497440727,1.72461256,3073.8,3073.2,3.25392]
[1720497441039,1.72461256,3073.7,3073.3,3.25378]
[1720497441237,1.12715128,3073.6,3073.3,3.25378]
[1720497441437,0.24679338,3073.7,3073.3,3.25378]
[1720497441651,0.74332126,3073.9,3073.3,3.25378]
[1720497441977,1.7247673,3073.8,3073.3,3.25378]
[1720497442125,1.12723078,3073.7,3073.3,3.25378]
[1720497442331,1.12723078,3073.8,3073.3,3.25378]
[1720497442634,1.31428621,3073.7,3073.1,3.25397]
[1720497442835,2.4788,3073.5,3072.7,3.25443]
[1720497443048,1.17706297,3073.4,3072.7,3.25443]
[1720497443258,1.17706297,3073.4,3072.6,3.25456]
[1720497443259,0.3655863,3073.3,3072.6,3.25456]
[1720497443458,0.3655863,3073.3,3072.7,3.25441]
[1720497443764,0.3655863,3073.3,3072.9,3.25424]
[1720497444363,0.74332126,3073.9,3073.4,3.25372]
[1720497444671,2.394,3074.1,3073.4,3.25372]
[1720497444866,2.394,3074.1,3073.6,3.25344]
[1720497445166,2.394,3074.1,3073.4,3.25372]
[1720497447687,1.12711904,3074.0,3073.4,3.25372]
[1720497447844,2.394,3074.1,3073.4,3.25372]
[1720497448047,0.5906323,3074.0,3073.4,3.25372]
[1720497449492,0.5906323,3074.0,3073.2,3.25393]
[1720497449640,0.5906323,3074.0,3073.0,3.25411]
[1720497449641,1.12714387,3073.9,3073.1,3.25403]
[1720497449845,1.72467254,3073.8,3073.1,3.25403]
[1720497450042,1.62502232,3073.7,3073.1,3.25403]
[1720497450281,0.49778925,3073.7,3073.1,3.25403]
[1720497450498,0.49778925,3073.7,3072.9,3.25424]
[1720497450702,1.12728659,3073.6,3072.9,3.25424]
[1720497450849,2.04634016,3074.3,3073.5,2.4916]
[1720497451070,3.25139,3075.7,3074.7,3.25225]
[1720497451384,2.04634016,3075.8,3074.8,3.25223]
[1720497451385,1.72381369,3075.5,3074.8,3.25223]
[1720497451589,1.72381369,3075.4,3074.9,3.25212]
[1720497451883,0.23799,3075.5,3074.9,3.25212]
[1720497452064,1.7235503,3075.4,3074.9,3.25212]
[1720497452257,0.19615403,3075.3,3074.9,3.25212]
[1720497452656,0.23799,3075.5,3074.9,3.25212]
[1720497453659,0.23799,3075.5,3075.0,3.25203]
[1720497462042,0.23799,3075.5,3075.1,3.2519]
[1720497463243,0.23799,3075.5,3075.0,3.25202]
[1720497463445,0.261789,3075.4,3075.0,3.25202]
[1720497465235,0.261789,3075.4,3075.1,3.25191]
[1720497469461,3.25119,3075.8,3075.1,3.25191]
[1720497472094,3.25119,3075.8,3074.8,3.25219]
[1720497472506,3.25119,3075.8,3075.0,3.25202]
[1720497472664,3.25132,3075.7,3074.8,3.25214]
[1720497472983,3.25132,3075.7,3075.0,3.25201]
[1720497473186,0.563122,3075.5,3075.0,3.25201]
[1720497473870,0.61284348,3075.5,3074.6,3.2524]
[1720497474071,3.30125148,3075.5,3074.6,3.25238]
[1720497474683,3.25153,3075.5,3074.7,3.25234]
[1720497477368,1.12666498,3075.4,3074.7,3.25234]
[1720497477573,1.0009505,3075.4,3074.7,3.25234]
[1720497477972,1.0009505,3075.4,3074.8,3.25223]
[1720497478170,2.3799,3075.6,3075.0,3.25202]
[1720497478369,1.12663467,3075.5,3075.0,3.25202]
[1720497478568,2.3799,3075.6,3075.0,3.25202]
[1720497478826,1.12662983,3075.5,3075.0,3.25202]
[1720497478991,2.3799,3075.6,3075.0,3.25202]
[1720497479185,1.12662867,3075.5,3075.0,3.25202]
[1720497479505,2.943012,3075.6,3074.9,3.2521]
[1720497479506,1.1266288,3075.4,3074.9,3.2521]
[1720497479715,1.1266288,3075.3,3074.9,3.2521]
[1720497479911,2.943012,3075.6,3074.9,3.2521]
[1720497480072,1.42095159,3075.5,3074.9,3.2521]
[1720497480272,1.12665039,3075.4,3075.0,3.25196]
[1720497480587,1.12665039,3075.3,3075.0,3.25196]
[1720497480780,1.12665039,3075.2,3075.0,3.25196]
[1720497481035,1.12665039,3075.1,3074.9,3.25213]
[1720497481194,0.2943012,3075.5,3074.9,3.25213]
[1720497481522,1.12662461,3075.4,3075.0,3.25199]
[1720497481686,1.12662461,3075.3,3075.0,3.25199]
[1720497482023,1.12662461,3075.2,3075.0,3.25199]
[1720497482229,1.12662461,3075.1,3075.0,3.25199]
[1720497483617,0.2943012,3075.5,3075.0,3.25199]
[1720497483818,1.12655021,3075.4,3075.0,3.25199]
[1720497483996,1.12655021,3075.3,3075.0,3.25199]
[1720497484199,1.12655021,3075.3,3074.8,3.25216]
[1720497484200,1.12655021,3075.2,3074.8,6.50432]
[1720497484711,1.12656262,3075.1,3074.9,3.25213]
[1720497484918,0.708,3075.3,3074.9,3.25213]
[1720497485221,1.1265632,3075.2,3074.9,3.25213]
[1720497485442,1.1265632,3075.1,3075.0,3.25203]
[1720497485584,2.3799,3075.6,3075.1,3.2519]
[1720497485919,9.316,3076.6,3075.3,3.25165]
[1720497485920,1.12653647,3075.5,3075.3,3.25165]
[1720497486131,2.3108,3076.0,3075.3,3.25165]
[1720497486132,2.3108,3076.0,3075.6,3.2513]
[1720497486364,1.12636429,3075.9,3075.6,3.2513]
[1720497486650,2.3108,3076.4,3075.9,3.25105]
[1720497486833,1.12629556,3076.3,3075.9,3.25105]
[1720497487036,1.12629556,3076.2,3076.0,3.25095]
[1720497487238,2.3108,3076.7,3076.0,3.25095]
[1720497487410,2.3108,3076.7,3076.1,3.25086]
[1720497487411,1.12618907,3076.6,3076.1,3.25086]
[1720497487610,0.34369891,3076.5,3076.1,3.25086]
[1720497488317,0.34369891,3076.5,3075.5,0.06501901]
[1720497488318,1.12620864,3076.4,3075.7,3.25125]
[1720497488518,1.12620864,3076.4,3075.5,3.25148]
[1720497488519,0.34369891,3076.5,3075.5,3.25148]
[1720497488761,1.12624304,3076.4,3075.8,3.25118]
[1720497489048,0.34369891,3076.5,3075.8,3.25118]
[1720497489256,1.12625644,3076.4,3075.8,3.25118]
[1720497489451,0.34369891,3076.5,3075.8,3.25118]
[1720497489658,1.12626954,3076.4,3075.8,3.25118]
[1720497489967,0.34369891,3076.5,3075.5,3.25148]
[1720497490108,1.12629911,3076.4,3075.5,3.25148]
[1720497490305,0.34369891,3076.5,3075.5,3.25148]
[1720497490543,1.1262962,3076.4,3075.5,3.25148]
[1720497490749,1.1262962,3076.3,3075.5,3.25148]
[1720497491154,0.34369891,3076.5,3075.5,3.25148]
[1720497491374,1.12632525,3076.4,3075.5,3.25148]
[1720497491573,0.34369891,3076.5,3075.5,3.25148]
[1720497491879,1.12632549,3076.4,3075.5,3.25148]
[1720497492264,1.12632549,3076.3,3075.5,3.25148]
[1720497492463,1.12632549,3076.4,3075.6,3.25139]
[1720497492649,1.12633123,3076.3,3075.6,3.25139]
[1720497492850,0.34369891,3076.5,3075.6,3.25139]
[1720497493047,1.12633221,3076.4,3075.6,3.25139]
[1720497493364,0.34369891,3076.5,3075.6,3.25139]
[1720497493560,1.12633042,3076.4,3075.6,3.25139]
[1720497493747,0.34369891,3076.5,3075.6,3.25139]
[1720497494084,1.12633043,3076.4,3075.3,3.25171]
[1720497494285,0.04972148,3076.4,3075.3,3.25168]
[1720497494583,2.4626,3076.2,3075.3,3.25168]
[1720497494757,1.12633739,3076.1,3075.3,3.25168]
[1720497495139,1.12633739,3076.1,3075.2,3.25181]
[1720497495984,1.12633739,3076.1,3075.3,3.2517]
[1720497497372,1.12633739,3076.1,3075.4,3.2515]
[1720497497573,2.4626,3076.2,3075.5,3.25148]
[1720497497780,0.2845142,3076.1,3075.5,3.25148]
[1720497497979,0.2845142,3076.1,3075.6,3.25138]
[1720497498773,0.34369891,3076.5,3075.5,3.25148]
[1720497498972,2.4096,3076.7,3075.9,3.251]
[1720497499173,1.12627392,3076.6,3075.8,3.25118]
[1720497499352,1.12627392,3076.5,3075.8,3.25118]
[1720497499553,0.24096,3076.6,3075.8,3.25118]
[1720497499838,1.12628712,3076.5,3075.8,3.25118]
[1720497500037,1.1263329,3076.4,3075.9,3.25108]
[1720497500241,0.265056,3076.5,3075.9,3.25108]
[1720497500474,0.265056,3076.5,3076.0,3.25095]